{"text_format":"1","workbook":"xlsx","n_sheets":1,"sheets":["Form_44"],"not_rendered":{"charts":0,"images":2,"macros":1,"external_links":2,"defined_names":13,"comments":1,"pivot_tables":0},"unopened":[],"bounds":{"document_bytes":16777216,"sheet_cells":100000,"rows_first":2000,"rows_last":500,"rows_between":2000,"halvings":0,"cell_chars":16384,"cell_head_chars":4096},"cells_cut":0,"cells_raw":0,"read":"whole","date_system":"1900"}

{"sheet":"Form_44","index":0,"n_rows":50,"n_cols":40,"rows_kept":50,"cut":false,"hidden":false,"merged":[[42,0,42,26],[43,1,43,10],[49,19,49,20],[49,23,49,28],[44,11,48,28],[43,11,43,28],[46,1,47,10],[48,5,49,10],[48,1,49,4],[1,27,1,28],[2,0,2,28],[3,0,3,28],[1,0,1,25],[8,28,10,28],[7,3,7,28],[4,0,4,28],[8,26,10,26],[8,23,10,23],[5,0,5,28],[8,0,10,0],[8,25,10,25],[8,1,9,1],[8,27,10,27],[6,0,6,28],[8,24,10,24]]}
[]
["jktLFkku ljdkj\nçkfof/kd f'k{kk e.My] jktLFkku] tks/kiqj \nijh{kk l= 2019&20 ¼r`rh; o\"kZ bath]½",null,null,null,null,null,null,null,null,null,null,null,null,null,null,null,null,null,null,null,null,null,null,null,null,null,null,"ikfjJfed foi=&44",null,null,null,null,null,null,0,null,null,null,0,11]
["ijh{kk dsUnz @laLFkku dk uke ,oa iwjk irk--------------------------------------------------------------------------------------------------------------------------------------------------- ijh{kk dsUnz dksM----------------------------------------------------------------------------------------------",null,null,null,null,null,null,null,null,null,null,null,null,null,null,null,null,null,null,null,null,null,null,null,null,null,null,null,null,null,null,null,null,null,1,null,null,null,1,12]
["ijh{kk dsUnz@laLFkku ds cSad dk uke ------------------------------------------------------------------------  [kkrk la[;k ----------------------------- laLFkku dk isu uEcj---------------------------------- vkbZ,Q,llh dksM----------------------------------------",null,null,null,null,null,null,null,null,null,null,null,null,null,null,null,null,null,null,null,null,null,null,null,null,null,null,null,null,null,null,null,null,null,2,null,null,null,2,13]
[null,null,null,null,null,null,null,null,null,null,null,null,null,null,null,null,null,null,null,null,null,null,null,null,null,null,null,null,null,null,null,null,null,null,null,null,null,null,null,14]
["¼1½ dkWye dksM es ijh{kk dsUnz v/kh{kd gsrq 11] vfrfjDr ijh{kk dsUnzz  v/kh{kd gsrq 12] ijh{kk oh{kd gsrq 13] Eak=kyf;d gsrq 14 ,oa prqFkZ Js.kh deZpkjh gsrq 15 vafdr djsaA",null,null,null,null,null,null,null,null,null,null,null,null,null,null,null,null,null,null,null,null,null,null,null,null,null,null,null,null,null,null,null,null,null,null,null,null,null,null,15]
["¼2½ fnukad @ikjh okys dkWye esa mifLFkfr fnol @ ikjh ds fnu 1 vafdr djsa vuqifLFfr ij 0 vafdr djsaA dqy jkf'k okys dkWye  esa x.kuk Lor% gh gksxhA vr% bl dkWye esa dqN vafdr ugha djsA"]
[null,null,null,"Exam Date"]
["SN.","\n","EXAM DATE","2020-09-23","2020-09-24","2020-09-25","2020-09-26","2020-09-28","2020-09-29","2020-09-30","2020-10-01","2020-10-03","2020-10-05","2020-10-06","2020-10-07","2020-10-08","2020-10-09","2020-10-10","2020-10-12","2020-10-13","2020-10-14","2020-10-15","2020-10-16","EXTRA-BEFORE","EXTRA-AFTER","TOTAL SESSIONS","RATE","TOTAL AMOUNT","SIGNATURE"]
[null,null,"SHIFT","I","I","I","I","I","I","I","I","I","I","I","I","I","I","I","I","I","I","I","I"]
[null,null,"STUDENT STRENGTH"]
[null,"Officer/Employee name in capital letters with designation","CODE"]
[1,null,null,null,null,null,null,null,null,null,null,null,null,null,null,null,null,null,null,null,null,null,null,null,null,{"$f":"SUM(D13:Y13)","v":0},null,{"$f":"IF(C13=\"\",0,IF(B13=\"\",0,IF(C13=11,Z13*100,IF(C13=12,Z13*75,IF(C13=13,ROUND(Z13*70,0),IF(C13=14,Z13*40,IF(C13=15,Z13*30)))))))","v":0}]
[null,null,null,null,null,null,null,null,null,null,null,null,null,null,null,null,null,null,null,null,null,null,null,null,null,{"$f":"SUM(D14:Y14)","v":0},null,0]
[null,null,null,null,null,null,null,null,null,null,null,null,null,null,null,null,null,null,null,null,null,null,null,null,null,{"$f":"SUM(D15:Y15)","v":0},null,0]
[null,null,null,null,null,null,null,null,null,null,null,null,null,null,null,null,null,null,null,null,null,null,null,null,null,0,null,0]
[null,null,null,null,null,null,null,null,null,null,null,null,null,null,null,null,null,null,null,null,null,null,null,null,null,{"$f":"SUM(D17:Y17)","v":0},null,0]
[null,null,null,null,null,null,null,null,null,null,null,null,null,null,null,null,null,null,null,null,null,null,null,null,null,0,null,0]
[null,null,null,null,null,null,null,null,null,null,null,null,null,null,null,null,null,null,null,null,null,null,null,null,null,0,null,0]
[null,null,null,null,null,null,null,null,null,null,null,null,null,null,null,null,null,null,null,null,null,null,null,null,null,0,null,0]
[null,null,null,null,null,null,null,null,null,null,null,null,null,null,null,null,null,null,null,null,null,null,null,null,null,0,null,0]
[null,null,null,null,null,null,null,null,null,null,null,null,null,null,null,null,null,null,null,null,null,null,null,null,null,0,null,0]
[null,null,null,null,null,null,null,null,null,null,null,null,null,null,null,null,null,null,null,null,null,null,null,null,null,0,null,0]
[null,null,null,null,null,null,null,null,null,null,null,null,null,null,null,null,null,null,null,null,null,null,null,null,null,0,null,0]
[null,null,null,null,null,null,null,null,null,null,null,null,null,null,null,null,null,null,null,null,null,null,null,null,null,0,null,0]
[null,null,null,null,null,null,null,null,null,null,null,null,null,null,null,null,null,null,null,null,null,null,null,null,null,0,null,0]
[null,null,null,null,null,null,null,null,null,null,null,null,null,null,null,null,null,null,null,null,null,null,null,null,null,0,null,0]
[null,null,null,null,null,null,null,null,null,null,null,null,null,null,null,null,null,null,null,null,null,null,null,null,null,0,null,0]
[null,null,null,null,null,null,null,null,null,null,null,null,null,null,null,null,null,null,null,null,null,null,null,null,null,0,null,0]
[null,null,null,null,null,null,null,null,null,null,null,null,null,null,null,null,null,null,null,null,null,null,null,null,null,0,null,0]
[null,null,null,null,null,null,null,null,null,null,null,null,null,null,null,null,null,null,null,null,null,null,null,null,null,0,null,0]
[null,null,null,null,null,null,null,null,null,null,null,null,null,null,null,null,null,null,null,null,null,null,null,null,null,0,null,0]
[null,null,null,null,null,null,null,null,null,null,null,null,null,null,null,null,null,null,null,null,null,null,null,null,null,0,null,0]
[null,null,null,null,null,null,null,null,null,null,null,null,null,null,null,null,null,null,null,null,null,null,null,null,null,0,null,0]
[null,null,null,null,null,null,null,null,null,null,null,null,null,null,null,null,null,null,null,null,null,null,null,null,null,0,null,0]
[null,null,null,null,null,null,null,null,null,null,null,null,null,null,null,null,null,null,null,null,null,null,null,null,null,{"$f":"SUM(D36:Y36)","v":0},null,0]
[null,null,null,null,null,null,null,null,null,null,null,null,null,null,null,null,null,null,null,null,null,null,null,null,null,0,null,0]
[null,null,null,null,null,null,null,null,null,null,null,null,null,null,null,null,null,null,null,null,null,null,null,null,null,0,null,0]
[null,null,null,null,null,null,null,null,null,null,null,null,null,null,null,null,null,null,null,null,null,null,null,null,null,0,null,0]
[null,null,null,null,null,null,null,null,null,null,null,null,null,null,null,null,null,null,null,null,null,null,null,null,null,0,null,0]
[null,null,null,null,null,null,null,null,null,null,null,null,null,null,null,null,null,null,null,null,null,null,null,null,null,{"$f":"SUM(D41:Y41)","v":0},null,0]
[null,null,null,null,null,null,null,null,null,null,null,null,null,null,null,null,null,null,null,null,null,null,null,null,null,0,null,0]
["Grand Total",null,null,null,null,null,null,null,null,null,null,null,null,null,null,null,null,null,null,null,null,null,null,null,null,null,null,{"$f":"SUM(AB13:AB42)","v":0}]
[null,"No.                     e.My dk;kZy; ç;ksxkFkZ\nfnukad                     çekf.kr ,oa ikfjr \n\n",null,null,null,null,null,null,null,null,null,"        iz/kkukpk;Z ds gLrk{kj e; eksgj "]
[null,"dqy :Ik;s vadks esa",{"$f":"+AB43","v":0},null,null,null,null,null,null,null,null,"çek.k i= %& \n1- izekf.kr fd;k tkrk gS fd izkfof/kd f'k{kk e.My] tks/kiqj dh ijh{kk ckcr le; le; ij izlkfjr funsZ'kksa rFkk ijh{kk v/kh{kd funsZ'k iqfLrdk dh ikyuk djrs gq, \n   fu/kkZfjr  ekin.M vuqlkj dkfeZdksa dh lsok,a izkIr djrs gq, ikfjJfed nkok funsZ'kkuqlkj vko';d foi=ksa dks layXu djrs gq, izLrqr fd;k x;k gSA\n2- Hkqxrku gsrq ;g fcy izFke ckj izLrqr fd;k x;k gSA\n3] Hkqxrku forj.k i'pkr izkfIr jlhn eaMy dks fHktok nh tk;sxhA"]
[null,"dqy :Ik;s 'kCnksa esa ",{"$f":"IF(AB43>0, SUBSTITUTE(spellnumber(AB43),\"Dollars and No Cents\",\"only\"),\"Rupees ….Nil ….\")","v":"Rupees ….Nil …."}]
[null,"izekf.kr fd;k tkrk gS fd  Hkqxrku gsrq ;g fcy izFke ckj izLrqr fd;k x;k gSA\n\n\n\nizHkkjh vf/kdkjh                    izHkkjh                             fyfid "]
[]
[null,"la;qDr funs'kd ¼jftLVªkj½]",null,null,null,"dk;kZy;k/;{k"]
[null,null,null,null,null,null,null,null,null,null,null,"fnukad"]